fUST/lending_fUST_20250910
["ID","MTS","AMOUNT","RATE_DAILY","PERIOD"]
[384580664,1757464064708,-22057.75194361,0.00018432,2]
[384580665,1757464064732,-480.0,0.0001863,2]
[384580666,1757464064757,-2325.25,0.0001863,2]
[384580667,1757464064782,-778.74,0.0001863,2]
[384580668,1757464064809,-1348.33,0.0001863,2]
[384580669,1757464064834,-543.69,0.0001863,2]
[384580670,1757464064858,-510.31,0.0001863,2]
[384580671,1757464064881,-151.0,0.000187,2]
[384580672,1757464064901,-14571.22498636,0.00018755,2]
[384580673,1757464064922,-214.11918731,0.00018755,2]
[384580674,1757464064942,-760.0,0.00018897,2]
[384580675,1757464064964,-302.11107479,0.00018904,2]
[384580676,1757464064988,-2325.25,0.00018904,2]
[384580677,1757464065012,-778.74,0.00018904,2]
[384580678,1757464065036,-1348.33,0.00018904,2]
[384580679,1757464065061,-543.69,0.00018904,2]
[384580680,1757464065196,-510.31,0.00018904,2]
[384580681,1757464065221,-500.0,0.00018943,2]
[384580682,1757464065244,-3000.0,0.00018972,2]
[384580683,1757464065266,-5984.2670153,0.00019056,2]
[384580684,1757464065287,-151.76146883,0.00019056,2]
[384580685,1757464065309,-606.43882944,0.00019056,2]
[384580686,1757464065330,-558.8569313,0.00019056,2]
[384580687,1757464065351,-2233.19229746,0.00019056,2]
[384580688,1757464065373,-499.29058853,0.00019056,2]
[384580689,1757464065393,-1997.16235411,0.00019056,2]
[384580690,1757464065415,-4493.61529674,0.00019056,2]
[384580691,1757464065436,-151.0,0.00019056,2]
[384580692,1757464065460,-2325.25,0.00019178,2]
[384580693,1757464065483,-778.74,0.00019178,2]
[384580694,1757464065508,-1348.33,0.00019178,2]
[384580695,1757464065533,-543.69,0.00019178,2]
[384580696,1757464065556,-510.31,0.00019178,2]
[384580697,1757464065578,-151.0,0.00019178,7]
[384580698,1757464065599,-151.0,0.00019178,7]
[384580699,1757464065621,-151.0,0.00019178,7]
[384580700,1757464065643,-151.0,0.00019178,7]
[384580701,1757464065664,-151.0,0.00019178,7]
[384580702,1757464065686,-151.0,0.00019178,7]
[384580703,1757464065706,-151.0,0.00019178,7]
[384580704,1757464065727,-151.0,0.00019178,7]
[384580705,1757464065747,-151.0,0.00019178,7]
[384580706,1757464065768,-151.0,0.00019178,7]
[384580707,1757464065790,-256.999185,0.00019178,7]
[384580708,1757464065813,-151.0,0.000194,2]
[384580709,1757464065835,-5816.7091071,0.00019412,2]
[384580710,1757464065858,-860.0,0.00019445,2]
[384580711,1757464065880,-7980.66076702,0.00019446,2]
[384580712,1757464065903,-1152.0,0.00019446,2]
[384580713,1757464065929,-2325.25,0.00019452,2]
[384580714,1757464065954,-778.74,0.00019452,2]
[384580715,1757464065982,-1348.33,0.00019452,2]
[384580716,1757464066008,-543.69,0.00019452,2]
[384580717,1757464066031,-510.31,0.00019452,2]
[384580718,1757464066053,-1000.0,0.00019491,2]
[384580719,1757464066076,-182.21987043,0.00019507,2]
[384580720,1757464066098,-178.659205,0.00019635,2]
[384580721,1757464066122,-1000.0,0.00019645,5]
[384580722,1757464066148,-2325.25,0.00019726,2]
[384580723,1757464066172,-778.74,0.00019726,2]
[384580724,1757464066197,-1348.33,0.00019726,2]
[384580725,1757464066222,-543.69,0.00019726,2]
[384580726,1757464066245,-510.31,0.00019726,2]
[384580727,1757464066267,-2000.0,0.000199,2]
[384580728,1757464066288,-500.0,0.000199,2]
[384580729,1757464066311,-500.0,0.000199,2]
[384580730,1757464066336,-20033.06520355,0.000199,2]
[384580731,1757464066357,-196.91732106,0.0001998,2]
[384580732,1757464066379,-960.0,0.00019993,2]
[384580733,1757464066401,-14455.28355835,0.0002,2]
[384580734,1757464066423,-365.4302396,0.0002,2]
[384580735,1757464066446,-20000.0,0.0002,2]
[384580736,1757464066467,-49777.15553881,0.0002,2]
[384580737,1757464066489,-23000.0,0.0002,2]
[384580738,1757464066511,-44935.74651043,0.0002,2]
[384580765,1757464232415,-5885.36663959,0.00013596,2]
[384580767,1757464232425,-300.0,0.00013697,2]
[384580769,1757464232435,-868.0,0.00013697,2]
[384580770,1757464232445,-480.0,0.00013698,2]
[384580771,1757464232455,-480.0,0.00013698,2]
[384580772,1757464232464,-480.0,0.00013698,2]
[384580773,1757464232474,-480.0,0.00013698,2]
[384580774,1757464232485,-480.0,0.00013698,2]
[384580775,1757464232495,-480.0,0.00013698,2]
[384580776,1757464232505,-480.0,0.00013698,2]
[384580777,1757464232515,-4.38221641,0.00013698,2]
[384580778,1757464232531,-475.61778359,0.00013698,2]
[384580779,1757464232540,-480.0,0.00013698,2]
[384580780,1757464232550,-157.49801985,0.00013698,2]
[384580781,1757464232562,-322.50198015,0.00013698,2]
[384580782,1757464232572,-334.87301986,0.00013698,2]
[384580794,1757464238244,-145.12698014,0.00013698,2]
[384580795,1757464238254,-480.0,0.00013698,2]
[384580796,1757464238263,-480.0,0.00013698,2]
[384580797,1757464238272,-480.0,0.00013698,2]
[384580798,1757464238281,-480.0,0.00013698,2]
[384580799,1757464238291,-480.0,0.00013698,2]
[384580800,1757464238300,-480.0,0.00013698,2]
[384580801,1757464238309,-480.0,0.00013698,2]
[384580802,1757464238319,-480.0,0.00013698,2]
[384580804,1757464238328,-480.0,0.00013698,2]
[384580806,1757464238337,-480.0,0.00013698,2]
[384580808,1757464238346,-480.0,0.00013698,2]
[384580810,1757464238355,-414.59,0.00013698,2]
[384580811,1757464238365,-480.0,0.00013698,2]
[384580812,1757464238374,-480.0,0.00013698,2]
[384580813,1757464238383,-480.0,0.00013698,2]
[384580814,1757464238392,-480.0,0.00013698,2]
[384580815,1757464238404,-480.0,0.00013698,2]
[384580816,1757464238413,-480.0,0.00013698,2]
[384580817,1757464238423,-166.11008686,0.00013698,2]
[384581282,1757464244843,-313.88991314,0.00013698,2]
[384581284,1757464244853,-480.0,0.00013698,2]
[384581286,1757464244863,-480.0,0.00013698,2]
[384581288,1757464244873,-480.0,0.00013698,2]
[384581290,1757464244883,-480.0,0.00013698,2]
[384581292,1757464244892,-480.0,0.00013698,2]
[384581294,1757464244902,-480.0,0.00013698,2]
[384581296,1757464244912,-480.0,0.00013698,2]
[384581298,1757464244921,-480.0,0.00013698,2]
[384581300,1757464244931,-480.0,0.00013698,2]
[384581302,1757464244940,-480.0,0.00013698,2]
[384581304,1757464244950,-480.0,0.00013698,2]
[384581318,1757464245062,-480.0,0.00013698,2]
[384581321,1757464245080,-480.0,0.00013698,2]
[384581323,1757464245090,-480.0,0.00013698,2]
[384581325,1757464245099,-480.0,0.00013698,2]
[384581327,1757464245109,-480.0,0.00013698,2]
[384581329,1757464245118,-480.0,0.00013698,2]
[384581331,1757464245127,-677.736956,0.00013699,2]
[384581333,1757464245136,-500.0,0.00013971,2]
[384581335,1757464245145,-300.0,0.00013971,2]
[384581337,1757464245155,-300.0,0.00013971,2]
[384581339,1757464245167,-300.0,0.00013971,2]
[384581341,1757464245176,-300.0,0.00013971,2]
[384581343,1757464245185,-300.0,0.00013971,2]
[384581345,1757464245194,-300.0,0.00013971,2]
[384581347,1757464245204,-300.0,0.00013971,2]
[384581349,1757464245213,-300.0,0.00013971,2]
[384581351,1757464245222,-300.0,0.00013971,2]
[384581353,1757464245232,-300.0,0.00013971,2]
[384581355,1757464245241,-300.0,0.00013971,2]
[384581357,1757464245250,-300.0,0.00013971,2]
[384581359,1757464245259,-300.0,0.00013971,2]
[384581361,1757464245268,-300.0,0.00013971,2]
[384581363,1757464245278,-300.0,0.00013971,2]
[384581365,1757464245287,-151.0,0.00013972,2]
[384581367,1757464245297,-291.265115,0.00013972,2]
[384581369,1757464245308,-151.0,0.00013972,2]
[384581371,1757464245317,-480.0,0.00013972,2]
[384581373,1757464245326,-480.0,0.00013972,2]
[384581375,1757464245335,-151.0,0.00013972,2]
[384581377,1757464245344,-151.0,0.00013972,2]
[384581379,1757464245354,-480.0,0.00013972,2]
[384581381,1757464245363,-480.0,0.00013972,2]
[384581383,1757464245372,-480.0,0.00013972,2]
[384581385,1757464245381,-480.0,0.00013972,2]
[384581387,1757464245390,-480.0,0.00013972,2]
[384581389,1757464245400,-480.0,0.00013972,2]
[384581390,1757464245410,-480.0,0.00013972,2]
[384581393,1757464245420,-480.0,0.00013972,2]
[384581395,1757464245429,-613.6,0.00013972,2]
[384581397,1757464245438,-480.0,0.00013972,2]
[384581399,1757464245449,-480.0,0.00013972,2]
[384581400,1757464245459,-396.83510807,0.00014,2]
[384581402,1757464245469,-500.0,0.00014238,2]
[384581404,1757464245480,-500.0,0.00014238,2]
[384581406,1757464245490,-500.0,0.00014238,2]
[384581408,1757464245500,-151.0,0.00014246,2]
[384581410,1757464245509,-151.0,0.00014246,2]
[384581412,1757464245518,-480.0,0.00014246,2]
[384581414,1757464245527,-151.0,0.00014246,2]
[384581416,1757464245536,-151.0,0.00014246,2]
[384581418,1757464245546,-529.22,0.00014246,2]
[384581420,1757464245555,-480.0,0.00014246,2]
[384581422,1757464245564,-480.0,0.00014246,2]
[384581424,1757464245573,-590.26,0.00014246,2]
[384581426,1757464245583,-480.0,0.00014246,2]
[384581428,1757464245592,-480.0,0.00014246,2]
[384581430,1757464245602,-480.0,0.00014246,2]
[384581432,1757464245612,-480.0,0.00014246,2]
[384581435,1757464245624,-480.0,0.00014246,2]
[384581437,1757464245633,-480.0,0.00014246,2]
[384581439,1757464245644,-600.0,0.00014249,2]
[384581441,1757464245653,-480.0,0.0001452,2]
[384581443,1757464245662,-228.80150064,0.0001452,2]
[384581445,1757464245671,-480.0,0.0001452,2]
[384581447,1757464245682,-491.65,0.0001452,2]
[384581449,1757464245701,-480.0,0.0001452,2]
[384581451,1757464245712,-480.0,0.0001452,2]
[384581453,1757464245721,-582.24,0.0001452,2]
[384581455,1757464245731,-480.0,0.0001452,2]
[384581457,1757464245741,-346.64233496,0.0001452,2]
[384581459,1757464245751,-151.0,0.00014794,2]
[384581461,1757464245761,-480.0,0.00014794,2]
[384581463,1757464245771,-151.0,0.00014794,2]
[384581465,1757464245781,-151.0,0.00014794,2]
[384581467,1757464245791,-461.74,0.00014794,2]
[384581469,1757464245801,-480.0,0.00014794,2]
[384581471,1757464245811,-480.0,0.00014794,2]
[384581473,1757464245820,-317.52,0.00014794,2]
[384581475,1757464245829,-283.095905,0.000149,2]
[384581477,1757464245839,-420.0,0.0001501,2]
[384581479,1757464245849,-480.0,0.00015068,2]
[384581481,1757464245859,-489.49999999,0.00015068,2]
[384581483,1757464245869,-468.78,0.00015068,2]
[384581485,1757464245879,-160.0,0.0001534,2]
[384581487,1757464245889,-530.79566296,0.0001534,2]
[384581489,1757464245899,-203.28455737,0.0001534,2]
[384581492,1757464245908,-846.80158213,0.0001534,2]
[384581494,1757464245917,-160.0,0.0001534,2]
[384581495,1757464245926,-217.65034598,0.0001534,2]
[384581496,1757464245935,-233.05759179,0.0001534,2]
[384581497,1757464245944,-417.15472785,0.0001534,2]
[384581498,1757464245953,-480.0,0.00015342,2]
[384581499,1757464245966,-193.041468,0.00015556,2]
[384581500,1757464245975,-151.0,0.00015556,2]
[384581501,1757464245983,-170.218472,0.00015556,2]
[384581502,1757464245992,-480.0,0.00015616,2]
[384581503,1757464246001,-233.98455844,0.00015635,7]
[384581504,1757464246010,-720.0,0.00015674,2]
[384581505,1757464246019,-480.0,0.0001589,2]
[384581506,1757464246028,-480.0,0.00016164,2]
[384581507,1757464246037,-315.55014154,0.00016438,2]
[384581508,1757464246048,-587.0,0.0001645,2]
[384581509,1757464246057,-151.0,0.00016712,2]
[384581510,1757464246066,-864.0,0.00017242,2]
[384581511,1757464246082,-823.0,0.00018027,2]
[384581513,1757464246096,-1000.0,0.00018966,20]
[384581515,1757464246111,-3000.0,0.0001952,2]
[384581518,1757464246122,-302.8183302,0.00019701,2]
[384581520,1757464246137,-1152.0,0.00019756,2]
[384581523,1757464246150,-1643.68572814,0.0001982,2]
[384581525,1757464246163,-454.2274953,0.00019898,4]
[384581528,1757464246177,-866.98892377,0.000199,2]
[384581530,1757464246191,-710.1661811,0.000199,2]
[384581533,1757464246204,-19365.24126264,0.000199,2]
[384581535,1757464246217,-297.49066636,0.00019967,2]
[384581537,1757464246230,-263.68115448,0.00019967,2]
[384581540,1757464246242,-500.0,0.00019967,2]
[384581542,1757464246257,-190.56122479,0.00019967,2]
[384581545,1757464246269,-435.9983319,0.00019967,2]
[384581547,1757464246282,-500.0,0.00019967,2]
[384581549,1757464246292,-500.0,0.00019967,2]
[384581551,1757464246305,-500.0,0.00019967,2]
[384581554,1757464246317,-231.83682242,0.00019967,2]
[384581556,1757464246329,-408.26120753,0.00019967,2]
[384581558,1757464246343,-459.66264612,0.00019967,2]
[384581561,1757464246356,-530.88247591,0.00019967,2]
[384581563,1757464246370,-500.0,0.00019967,2]
[384581566,1757464246386,-500.0,0.00019967,2]
[384581568,1757464246400,-500.0,0.00019967,2]
[384581570,1757464246414,-500.0,0.00019967,2]
[384581573,1757464246425,-500.0,0.00019967,2]
[384581575,1757464246438,-451.99456247,0.00019967,2]
[384581577,1757464246452,-500.0,0.00019967,2]
[384581580,1757464246468,-500.0,0.00019967,2]
[384581582,1757464246481,-500.0,0.00019967,2]
[384581584,1757464246492,-333.51194205,0.00019967,2]
[384581586,1757464246504,-4970.62209996,0.00019968,2]
[384581599,1757464246610,-277.02025799,0.00019968,2]
[384581601,1757464246624,-187430.0175085,0.00019968,2]
[384581603,1757464246636,-36272.98940219,0.0002,2]
[384581606,1757464246648,-173.862,0.0002,2]
[384581608,1757464246663,-151.0,0.0002,4]
[384581610,1757464246675,-304.96541728,0.0002,2]
[384581612,1757464246688,-250.0,0.0002,10]
[384581614,1757464246699,-1500.0,0.0002,14]
[384581617,1757464246711,-1500.0,0.0002,14]
[384581619,1757464246723,-1500.0,0.0002,14]
[384581621,1757464246734,-1500.0,0.0002,14]
[384581623,1757464246745,-1500.0,0.0002,14]
[384581626,1757464246756,-1500.0,0.0002,14]
[384581628,1757464246767,-1500.0,0.0002,14]
[384581630,1757464246778,-1500.0,0.0002,14]
[384581632,1757464246789,-1500.0,0.0002,14]
[384581634,1757464246803,-1500.0,0.0002,14]
[384581637,1757464246815,-755.049555,0.0002,14]
[384581639,1757464246827,-151.50000152,0.0002,2]
[384581641,1757464246838,-160.0,0.00020003,2]
[384581643,1757464246850,-454.2274953,0.00020095,4]
[384581645,1757464246861,-250.0,0.000201,10]
[384581648,1757464246873,-677.736956,0.00020187,2]
[384581650,1757464246885,-250.0,0.000202,10]
[384581652,1757464246898,-151.87831253,0.00020292,4]
[384581654,1757464246908,-168.0,0.00020295,2]
[384581657,1757464246920,-250.0,0.000203,10]
[384581659,1757464246931,-19365.24126248,0.00020327,2]
[384581661,1757464246942,-250.0,0.000204,10]
[384581663,1757464246954,-710.16618109,0.000204,2]
[384581665,1757464246964,-1000.0,0.00020493,5]
[384581667,1757464246974,-250.0,0.000205,10]
[384581669,1757464246983,-260.0,0.00020551,2]
[384581671,1757464246992,-1223.18094358,0.00020558,2]
[384581673,1757464247002,-168.0,0.00020573,2]
[384581675,1757464247011,-168.0,0.00020598,2]
[384581677,1757464247020,-250.0,0.000206,10]
[384581679,1757464247029,-3000.0,0.00020616,2]
[384581681,1757464247038,-150.0,0.00020659,2]
[384581683,1757464247047,-250.0,0.000207,10]
[384581685,1757464247057,-19365.24126248,0.00020755,2]
[384581687,1757464247066,-250.0,0.000208,10]
[384581689,1757464247075,-1000.0,0.00020863,20]
[384581691,1757464247084,-244.0,0.00020863,20]
[384581693,1757464247093,-168.0,0.00020865,2]
[384581695,1757464247102,-2000.0,0.000209,2]
[384581697,1757464247112,-250.0,0.000209,10]
[384581699,1757464247121,-710.16618109,0.000209,2]
[384581701,1757464247130,-168.0,0.00020904,2]
[384581703,1757464247140,-157.0,0.00020938,2]
[384581705,1757464247149,-239.0,0.00020938,2]
[384581707,1757464247158,-157.0,0.00020938,2]
[384581726,1757464247320,-157.0,0.00020938,2]
[384581728,1757464247336,-168.0,0.00020938,2]
[384581730,1757464247348,-150.0,0.00021,2]
[384581732,1757464247357,-250.0,0.00021,10]
[384581734,1757464247366,-360.0,0.00021099,2]
[384581736,1757464247375,-250.0,0.000211,10]
[384581738,1757464247385,-866.98892377,0.00021139,2]
[384581740,1757464247395,-409.0,0.00021152,2]
[384581742,1757464247407,-168.0,0.00021167,2]
[384581744,1757464247417,-168.0,0.00021182,2]
[384581746,1757464247426,-19365.24126248,0.00021182,2]
[384581748,1757464247435,-157.0,0.00021212,2]
[384581750,1757464247446,-157.0,0.00021212,2]
[384581752,1757464247454,-1223.18094358,0.00021215,2]
[384581754,1757464247464,-65599.07,0.0002127,2]
[384581756,1757464247473,-160.57800703,0.00021315,2]
[384581758,1757464247482,-168.0,0.00021317,2]
[384581760,1757464247491,-167.280992,0.0002139,10]
[384581762,1757464247500,-710.16618109,0.000214,2]
[384581764,1757464247509,-151.0,0.0002142,2]
[384581766,1757464247518,-186.0,0.00021486,2]
[384581768,1757464247527,-186.0,0.00021486,2]
[384581770,1757464247537,-160.57800703,0.00021589,2]
[384581772,1757464247547,-417.15472785,0.000216,3]
[384581774,1757464247556,-160.0,0.000216,3]
[384581776,1757464247565,-19365.24126248,0.0002161,2]
[384581778,1757464247574,-160.0,0.00021623,3]
[384581780,1757464247583,-460.0,0.00021647,2]
[384581782,1757464247593,-1613.0,0.0002165,2]
[384581784,1757464247602,-1911.790695,0.0002168,5]
[384581786,1757464247611,-1000.0,0.000217,5]
[384581788,1757464247620,-3000.0,0.00021712,2]
[384581790,1757464247629,-151.0,0.00021712,2]
[384581792,1757464247639,-151.0,0.00021712,2]
[384581794,1757464247648,-1000.0,0.0002172,5]
[384581796,1757464247657,-1000.0,0.0002174,5]
[384581798,1757464247666,-1947.637535,0.0002176,5]
[384581800,1757464247675,-1000.0,0.0002176,5]
[384581801,1757464247684,-1000.0,0.0002178,5]
[384581803,1757464247696,-1000.0,0.0002178,5]
[384581805,1757464247705,-2744.32163766,0.000218,2]
[384581807,1757464247715,-1000.0,0.000218,5]
[384581809,1757464247724,-1000.0,0.000218,5]
[384581811,1757464247734,-1000.0,0.0002182,5]
[384581813,1757464247743,-1000.0,0.0002182,5]
[384581815,1757464247752,-1000.0,0.0002184,5]
[384581818,1757464247762,-1000.0,0.0002184,5]
[384581819,1757464247771,-1000.0,0.0002186,5]
[384581821,1757464247780,-1000.0,0.0002186,5]
[384581823,1757464247790,-1297.8832346,0.00021877,2]
[384581825,1757464247799,-1000.0,0.0002188,5]
[384581827,1757464247808,-1000.0,0.0002188,5]
[384581829,1757464247817,-160.57800703,0.0002189,2]
[384581831,1757464247827,-1000.0,0.000219,5]
[384581833,1757464247836,-1000.0,0.000219,5]
[384581835,1757464247845,-151.0,0.000219,4]
[384581838,1757464247857,-710.16618109,0.000219,2]
[384581839,1757464247866,-153.0,0.00021918,2]
[384581841,1757464247875,-153.0,0.00021918,2]
[384581843,1757464247884,-153.0,0.00021918,2]
[384581845,1757464247894,-153.0,0.00021918,2]
[384581847,1757464247905,-153.0,0.00021918,2]
[384581849,1757464247914,-153.0,0.00021918,2]
[384581851,1757464247924,-153.0,0.00021918,2]
[384581853,1757464247933,-153.0,0.00021918,2]
[384581855,1757464247943,-153.0,0.00021918,2]
[384581857,1757464247952,-153.0,0.00021918,2]
[384581859,1757464247962,-153.0,0.00021918,2]
[384581861,1757464247971,-153.0,0.00021918,2]
[384581863,1757464247979,-153.0,0.00021918,2]
[384581865,1757464247989,-153.0,0.00021918,2]
[384581867,1757464247999,-153.0,0.00021918,2]
[384581869,1757464248008,-1000.0,0.00021918,2]
[384581871,1757464248018,-1000.0,0.00021918,2]
[384581873,1757464248027,-1000.0,0.00021918,2]
[384581875,1757464248037,-1000.0,0.00021918,2]
[384581877,1757464248046,-1000.0,0.00021918,2]
[384581878,1757464248055,-1000.0,0.00021918,2]
[384581880,1757464248065,-1000.0,0.00021918,2]
[384581882,1757464248074,-1000.0,0.00021918,2]
[384581884,1757464248084,-1000.0,0.00021918,2]
[384581886,1757464248094,-1000.0,0.00021918,2]
[384581888,1757464248104,-1000.0,0.00021918,2]
[384581890,1757464248113,-1000.0,0.00021918,2]
[384581892,1757464248123,-1000.0,0.00021918,2]
[384581894,1757464248133,-1000.0,0.00021918,2]
[384581896,1757464248142,-1000.0,0.00021918,2]
[384581898,1757464248152,-1000.0,0.00021918,2]
[384581900,1757464248160,-1000.0,0.00021918,2]
[384581902,1757464248170,-1000.0,0.00021918,2]
[384581904,1757464248179,-1000.0,0.00021918,2]
[384581906,1757464248188,-1000.0,0.00021918,2]
[384581908,1757464248197,-1000.0,0.00021918,2]
[384581910,1757464248206,-1000.0,0.00021918,2]
[384581912,1757464248217,-1000.0,0.00021918,2]
[384581914,1757464248226,-1000.0,0.00021918,2]
[384581916,1757464248235,-1000.0,0.00021918,2]
[384581918,1757464248245,-1000.0,0.00021918,2]
[384581920,1757464248254,-1000.0,0.00021918,2]
[384581921,1757464248263,-1000.0,0.00021918,2]
[384581923,1757464248272,-1000.0,0.00021918,2]
[384581925,1757464248281,-1000.0,0.00021918,2]
[384581927,1757464248291,-1000.0,0.00021918,2]
[384581929,1757464248300,-1000.0,0.00021918,2]
[384581931,1757464248309,-1000.0,0.00021918,2]
[384581933,1757464248318,-1000.0,0.00021918,2]
[384581935,1757464248327,-1000.0,0.00021918,2]
[384581937,1757464248336,-1000.0,0.00021918,2]
[384581939,1757464248345,-1000.0,0.00021918,2]
[384581941,1757464248354,-1000.0,0.00021918,2]
[384581943,1757464248364,-1000.0,0.00021918,2]
[384581944,1757464248373,-1000.0,0.00021918,2]
[384581945,1757464248383,-1000.0,0.00021918,2]
[384581946,1757464248392,-1000.0,0.00021918,2]
[384581947,1757464248403,-1000.0,0.00021918,2]
[384581948,1757464248414,-1000.0,0.00021918,2]
[384581949,1757464248424,-1000.0,0.00021918,2]
[384581950,1757464248433,-1000.0,0.00021918,2]
[384581951,1757464248443,-1000.0,0.00021918,2]
[384581952,1757464248454,-1000.0,0.00021918,2]
[384581953,1757464248464,-1000.0,0.00021918,2]
[384581954,1757464248474,-1000.0,0.00021918,2]
[384581956,1757464248486,-996.261059,0.00021918,2]
[384581958,1757464248496,-2196.0,0.00021918,2]
[384581960,1757464248505,-151.0,0.00021918,3]
[384581962,1757464248514,-1658.295599,0.00021918,7]
[384581964,1757464248523,-1658.295599,0.00021918,7]
[384581966,1757464248533,-1658.295599,0.00021918,7]
[384581968,1757464248543,-1658.295599,0.00021918,7]
[384581970,1757464248552,-203.28455737,0.0002192,7]
[384581972,1757464248561,-500.0,0.00021973,2]
[384581974,1757464248572,-160.0,0.00021993,4]
[384581976,1757464248581,-555.11253536,0.00022,14]
[384581978,1757464248591,-3928.26,0.00022,7]
[384581980,1757464248600,-7878.4,0.00022,7]
[384581982,1757464248609,-6824.36,0.00022,7]
[384581984,1757464248618,-355.52935441,0.00022,2]
[384581986,1757464248627,-168.36413254,0.00022,10]
[384581988,1757464248636,-203.45999601,0.00022,7]
[384581990,1757464248645,-2577.12,0.00022,2]
[384581992,1757464248656,-10578.81621497,0.00022,7]
[384581994,1757464248665,-35563.39158246,0.00022,7]
[384582010,1757464248805,-337.07364615,0.00013698,2]
[384582174,1757464250444,-142.92635385,0.00013698,2]
[384582176,1757464250455,-480.0,0.00013698,2]
[384582178,1757464250464,-480.0,0.00013972,2]
[384582180,1757464250472,-13067.15639815,0.00022,7]
[384582194,1757464250608,-480.0,0.00013698,2]
[384582196,1757464250618,-151.0,0.00021712,2]
[384582198,1757464250627,-964.457886,0.00022,7]
[384582225,1757464250890,-12429.69432787,0.00022,7]
[384582227,1757464250901,-48530.53980552,0.00022,7]
[384582229,1757464250911,-160.0,0.00022,7]
[384582231,1757464250920,-1161.3220833,0.00022,3]
[384582233,1757464250929,-160.0,0.00022,7]
[384582235,1757464250939,-1658.295599,0.00022,7]
[384582237,1757464250949,-1658.295599,0.00022,7]
[384582239,1757464250958,-1658.295599,0.00022,7]
[384582241,1757464250968,-1658.295599,0.00022,7]
[384582243,1757464250977,-203.28455737,0.00022,7]
[384582245,1757464250986,-923.61,0.00022,2]
[384582247,1757464250995,-151.0,0.00022,7]
[384582249,1757464251004,-151.0,0.00022,7]
[384582250,1757464251014,-151.0,0.00022,7]
[384582252,1757464251023,-287.234542,0.00022,7]
[384582254,1757464251033,-151.0,0.00022,7]
[384582256,1757464251042,-153.296678,0.00022,7]
[384582258,1757464251052,-19365.24126248,0.00022037,2]
[384582260,1757464251061,-7198.57308501,0.00022064,2]
[384582262,1757464251071,-160.57800703,0.00022164,2]
[384582264,1757464251080,-560.0,0.00022195,2]
[384582266,1757464251090,-151.0,0.000222,10]
[384582268,1757464251099,-160.0,0.00022363,5]
[384582270,1757464251108,-244.68658204,0.00022363,5]
[384582272,1757464251117,-866.98892377,0.00022377,2]
[384582274,1757464251126,-289.5968939,0.00022428,2]
[384582276,1757464251135,-19365.24126248,0.00022464,2]
[384582278,1757464251145,-1014.48228306,0.000225,2]
[384582280,1757464251154,-151.0,0.000225,8]
[384582282,1757464251163,-151.0,0.000225,3]
[384582283,1757464251175,-151.0,0.000225,3]
[384582285,1757464251184,-151.0,0.000225,3]
[384582287,1757464251194,-151.0,0.000225,3]
[384582289,1757464251203,-151.0,0.000225,3]
[384582291,1757464251213,-151.0,0.000225,3]
[384582293,1757464251222,-151.0,0.000225,3]
[384582295,1757464251232,-151.0,0.000225,3]
[384582297,1757464251241,-151.0,0.000225,3]